[Event "Eurasia Open Cup 2018"]
[Site "Jekaterienburg"]
[Date "2018.08.02"]
[Round "2"]
[White "Kryakvin, Dmitry"]
[Black "Nesterov, Arseniy"]
[Result "1-0"]
[ECO "E01"]
[WhiteElo "2591"]
[BlackElo "2355"]
[Annotator "ChessBase"]
[PlyCount "89"]
[EventDate "2018.08.01"]
[EventType "swiss"]
[EventCountry "RUS"]
[SourceTitle "playchess.com"]
[Source "ChessBase"]
[SourceQuality "1"]
[TimeControl "5400+30"]

1. d4 {[%emt 1:14:56]} Nf6 {[%emt 1:29:23]} 2. c4 {[%emt 0:00:22]} e6 {[%emt 0:00:21]} 3. g3 {[%emt 0:00:29]} c5 {[%emt 0:00:22]} 4. Nf3 {[%emt 0:00:22]} cxd4 {[%emt 0:00:42]} 5. Nxd4 {[%emt 0:00:22]} d5 {[%emt 0:00:24]} 6. Bg2 {[%emt 0:00:23]} e5 {[%emt 0:00:24]} 7. Nf3 {[%emt 0:00:22]} d4 {[%emt 0:00:40]} 8. O-O {[%emt 0:00:22]} Nc6 {[%emt 0:00:22]} 9. e3 {[%emt 0:00:22]} Be7 {[%emt 0:00:22]} 10. exd4 {[%emt 0:00:22]} exd4 {[%emt 0:00:22]} 11. Bf4 {[%emt 0:00:23]} O-O {[%emt 0:00:21]} 12. Ne5 {[%emt 0:00:22]} Qb6 {[%emt 0:00:23]} 13. Qb3 {[%emt 0:00:25]} Na5 {[%emt 0:00:36]} 14. Qxb6 {[%emt 0:00:23]} axb6 {[%emt 0:00:22]} 15. Nd2 {[%emt 0:00:23]} Nh5 {[%emt 0:00:22]} 16. Nb3 {[%emt 0:00:24]} Nxf4 {[%emt 0:00:22]} 17. gxf4 {[%emt 0:00:22]} Bf6 {[%emt 0:00:23]} 18. Bd5 {[%emt 0:00:36]} Bh3 {[%emt 0:00:23]} 19. Rfe1 {[%emt 0:00:26]} Nxb3 {[%emt 0:00:25]} 20. axb3 {[%emt 0:00:21]} Rxa1 {[%emt 0:00:32]} 21. Rxa1 {[%emt 0:00:22]} g5 {[%emt 0:00:29]} 22. Re1 {[%emt 0:00:23]} gxf4 {[%emt 0:02:50]} 23. Nd3 {[%emt 0:00:27]} Bf5 {[%emt 0:00:23]} 24. Be4 {[%emt 0:00:39]} Bxe4 {[%emt 0:00:21]} 25. Rxe4 {[%emt 0:00:22]} f3 {[%emt 0:00:26]} 26. Rf4 {[%emt 0:00:31]} Ra8 {[%emt 0:00:39]} 27. Rxf3 {[%emt 0:01:09]} Ra1+ {[%emt 0:00:24]} 28. Kg2 {[%emt 0:00:24]} Bg7 {[%emt 0:00:29]} 29. Kg3 {[%emt 0:00:26]} Rd1 {[%emt 0:00:23]} 30. Kf4 {[%emt 0:00:23]} Kf8 {[%emt 0:00:55]} 31. Ke4 {[%emt 0:00:23]} Rd2 {[%emt 0:00:30]} 32. Kd5 {[%emt 0:00:23]} Ke7 {[%emt 0:00:30]} 33. b4 {[%emt 0:03:57]} Rc2 {[%emt 0:00:23]} 34. Rg3 {[%emt 0:00:25]} Bf6 {[%emt 0:00:31]} 35. Rh3 {[%emt 0:00:23]} Rd2 {[%emt 0:00:24]} 36. c5 {[%emt 0:00:22]} b5 {[%emt 0:00:27]} 37. c6 {[%emt 0:00:23]} bxc6+ {[%emt 0:00:23]} 38. Kxc6 {[%emt 0:00:23]} Bh4 {[%emt 0:00:23]} 39. Rf3 {[%emt 0:01:43]} Ke6 {[%emt 0:00:59]} 40. Nc5+ {[%emt 0:00:25]} Ke5 {[%emt 0:00:30]} 41. Nd3+ {[%emt 0:00:26]} Ke6 {[%emt 0:00:26]} 42. Kc5 {[%emt 0:00:28]} f5 {[%emt 0:00:23]} 43. Kxd4 {[%emt 0:00:23]} Rc2 {[%emt 0:00:41]} 44. Re3+ {[%emt 0:00:28]} Kf6 {[%emt 0:00:30]} 45. Rh3 {[%emt 0:00:23]} 1-0

[Event "Eurasia Open Cup 2018"]
[Site "Jekaterienburg"]
[Date "2018.08.02"]
[Round "2"]
[White "Rudometov, Maxim"]
[Black "Tsydypov, Zhamsaran"]
[Result "1/2-1/2"]
[ECO "A29"]
[WhiteElo "2279"]
[BlackElo "2514"]
[Annotator "RC"]
[PlyCount "83"]
[EventDate "2018.08.01"]
[EventType "swiss"]
[EventCountry "RUS"]
[SourceTitle "playchess.com"]
[Source "ChessBase"]
[SourceQuality "1"]
[TimeControl "5400+30"]

1. c4 {[%emt 1:15:20]} e5 {[%emt 1:15:21]} 2. g3 {[%emt 0:00:24]} Nf6 {[%emt 0:00:22]} 3. Bg2 {[%emt 0:00:21]} d5 {[%emt 0:00:22]} 4. cxd5 {[%emt 0:00:21]} Nxd5 {[%emt 0:00:22]} 5. Nc3 {[%emt 0:00:22]} Nb6 {[%emt 0:00:22]} 6. Nf3 {[%emt 0:00:22]} Nc6 {[%emt 0:00:23]} 7. O-O {[%emt 0:00:21]} Be7 {[%emt 0:00:22]} 8. d3 {[%emt 0:00:22]} O-O {[%emt 0:00:21]} 9. Be3 {[%emt 0:00:23]} Be6 {[%emt 0:00:21]} 10. Rc1 {[%emt 0:00:22]} f6 {[%emt 0:00:22]} 11. Ne4 {[%emt 0:00:23]} Bf7 {[%emt 0:00:23]} 12. Bc5 {[%emt 0:00:22]} Nd5 {[%emt 0:00:23]} 13. Qa4 {[%emt 0:00:22]} Qe8 {[%emt 0:00:22]} 14. Bxe7 {[%emt 0:00:25]} Ndxe7 {[%emt 0:00:24]} 15. Rfd1 {[%emt 0:00:22]} Nf5 {[%emt 0:00:22]} 16. e3 {[%emt 0:00:22]} Nd6 {[%emt 0:00:23]} 17. Nfd2 {[%emt 0:00:24]} a5 {[%emt 0:00:22]} 18. Nxd6 {[%emt 0:00:24]} cxd6 {[%emt 0:00:37]} 19. Nc4 {[%emt 0:00:21]} Qe7 {[%emt 0:00:26]} 20. Nb6 {[%emt 0:00:21]} Rab8 {[%emt 0:00:23]} 21. Qb5 {[%emt 0:00:22]} Be8 {[%emt 0:00:22]} 22. Nd5 {[%emt 0:00:22]} Qd8 {[%emt 0:00:22]} 23. Qb6 {[%emt 0:00:22]} Rf7 {[%emt 0:00:22]} 24. a3 {[%emt 0:00:25]} f5 {[%emt 0:00:21]} 25. f4 {[%emt 0:00:30]} g6 {[%emt 0:00:25]} 26. Kf2 {[%emt 0:00:21]} Kg7 {[%emt 0:00:23]} 27. Rc3 {[%emt 0:00:22]} Bd7 {[%emt 0:00:22]} 28. Qxd8 {[%emt 0:00:23]} Rxd8 {[%emt 0:00:24]} 29. Nb6 {[%emt 0:00:22]} Be8 {[%emt 0:00:24]} 30. d4 {[%emt 0:00:27]} e4 {[%emt 0:00:23]} 31. Bf1 {[%emt 0:01:36]} d5 {[%emt 0:00:59]} 32. Rc5 {[%emt 0:00:23]} Ne7 {[%emt 0:00:31]} 33. Rxa5 {[%emt 0:00:22]} Rf6 {[%emt 0:00:22]} 34. Na4 {[%emt 0:00:27]} Bxa4 {[%emt 0:00:24]} 35. Rxa4 {[%emt 0:00:23]} Rc8 {[%emt 0:01:48]} 36. Rb4 {[%emt 0:00:22]} Rc2+ {[%emt 0:00:22]} 37. Be2 {[%emt 0:00:22]} b6 {[%emt 0:00:23]} 38. Ke1 {[%emt 0:00:23]} Rfc6 {[%emt 0:00:21]} 39. Rd2 {[%emt 0:00:23]} Rc1+ {[%emt 0:00:22]} 40. Rd1 {[%emt 0:00:22]} R1c2 {[%emt 0:00:22]} 41. Rd2 {[%emt 0:00:59]} Rc1+ {[%emt 0:00:22]} 42. Rd1 {[%emt 0:00:25]} 1/2-1/2